Cogmind - Beta 17 @@@ ROGUE MODE // 2026.07.25 @ 14:45:12 Player: Arttano Result: Self-destructed Performance ------------- Evolutions (6) 3000 Regions Visited (10) 2000 Robots Destroyed (47) 235 Value Destroyed (1139) 1139 Prototype IDs (30) 600 Alien Tech Used (0) 0 Bonus (800) 800 TOTAL SCORE: 7774 Bonus ------- Entered DSFs 500 Aligned with FarCom 300 Cogmind --------- Core Integrity 1069/1150 Matter 109/300 Energy 100/100 System Corruption 0% Temperature Cool (1) Movement Flying (50) Location -4/Factory Parts ------- > --- POWER (2) -------- (None) > --- PROPULSION (6) --- Myomer Leg Improved Linear Gravjet Improved Flight Unit > --- UTILITY (9) ------ Machine Analyzer Advanced Terrain Scan Processor Improved Transmission Jammer Hacking Suite Hacking Suite Improved Hacking Suite > --- WEAPON (2) ------- (None) > --- INVENTORY (5) ---- Light Nuclear Core Micro Fission Core Improved Terrain Scan Processor Advanced Transmission Jammer Advanced ECM Suite Peak State ------------ > --- POWER ------------ Light Nuclear Core > --- PROPULSION ------- Armored Treads Xenon Bombardment Thruster Nuclear Pulse Thruster > --- UTILITY ---------- Enhanced Optical Array Advanced Terrain Scanner Advanced Terrain Scan Processor Improved Reaction Control System Hacking Suite Hacking Suite Improved Hacking Suite System Shield > --- WEAPON ----------- Katana Katana > --- INVENTORY -------- Light Nuclear Core Improved Heat Sink Improved Terrain Scan Processor Transmission Jammer [Rating: 55] Favorites ----------- Power Ion Engine Engine Ion Engine Power Core Light Nuclear Core Propulsion Light Treads Treads Light Treads Leg Myomer Leg Wheel Compact Wheel Hover Unit Hover Unit Flight Unit Xenon Bombardment Thruster Utility Large Storage Unit Device Seismic Detector Storage Large Storage Unit Processor Advanced Terrain Scan Processor Hackware Hacking Suite Protection Light Armor Plating Weapon Katana Energy Gun Small Laser Energy Cannon Heavy Particle Cannon Ballistic Gun Assault Rifle Ballistic Cannon Light Cannon Launcher Rocket Launcher Slashing Weapon Katana Build | -11 -10 -10 -10 -9 -8 -7 -6 -5 -5 -4 ------- Run | Yrd Mat Min Exi Min Mat Fac Fac Fac DSF Fac Slots Evolved 12 | . . . . . 4 2 2 2 . 2 Power 1 | . . . . . . . . 1 . . Propulsion 4 | . . . . . 2 1 . . . 1 Utility 7 | . . . . . 2 1 2 1 . 1 Weapon . | . . . . . . . . . . . Parts Attached 50 | 5 2 3 1 . 4 10 17 . 1 7 Power 3 | . . . . . . . 1 . . 2 Engine . | . . . . . . . . . . . Core 3 | . . . . . . . 1 . . 2 Reactor . | . . . . . . . . . . . Propulsion 14 | 2 . 2 . . 1 1 5 . . 3 Treads 4 | 1 . 1 . . 1 . 1 . . . Leg 1 | . . . . . . . . . . 1 Wheel 3 | 1 . 1 . . . . 1 . . . Hover 2 | . . . . . . 1 . . . 1 Flight 4 | . . . . . . . 3 . . 1 Utility 21 | 2 1 . . . 2 4 9 . 1 2 Device 9 | 2 . . . . 1 1 4 . 1 . Storage 1 | . 1 . . . . . . . . . Processor 3 | . . . . . . 1 1 . . 1 Hackware 5 | . . . . . . . 4 . . 1 Protection 3 | . . . . . 1 2 . . . . Artifact . | . . . . . . . . . . . Weapon 12 | 1 1 1 1 . 1 5 2 . . . Energy Gun . | . . . . . . . . . . . Energy Cannon 2 | . . 1 1 . . . . . . . Ballistic Gun 2 | 1 . . . . . 1 . . . . Ballistic Cannon 4 | . 1 . . . . 3 . . . . Launcher 1 | . . . . . 1 . . . . . Special Weapon . | . . . . . . . . . . . Impact Weapon . | . . . . . . . . . . . Slashing Weapon 3 | . . . . . . 1 2 . . . Piercing Weapon . | . . . . . . . . . . . Special Melee Weapon . | . . . . . . . . . . . Unidentified Prototypes 1 | . . . . . . 1 . . . . Parts Lost 18 | . . 1 . . . 9 2 . 6 . Power 2 | . . . . . . 1 . . 1 . Propulsion 9 | . . 1 . . . 4 2 . 2 . Utility 5 | . . . . . . 3 . . 2 . Weapon 2 | . . . . . . 1 . . 1 . Highest Loss Streak 7 | . . 1 . . . 7 1 . 6 . To Critical Strikes . | . . . . . . . . . . . Average Backups 10 | 7 8 11 15 15 13 14 5 4 4 3 Power 2 | 1 2 2 2 2 2 3 1 1 1 1 Propulsion 1 | 3 2 2 3 3 1 2 . . . . Utility 3 | . 2 3 5 5 3 4 2 3 3 2 Weapon 3 | 1 2 3 5 5 5 5 . . . . Tool/Special . | . . . . . . . . . . . Unused Backups 18 | 8 . . 1 . . 4 2 . . 3 Power 4 | 1 . . . . . 2 1 . . . Propulsion 5 | 4 . . . . . 1 . . . . Utility 6 | 2 . . . . . 1 . . . 3 Weapon 3 | 1 . . 1 . . . 1 . . . Tool/Special . | . . . . . . . . . . . Average Slot Usage (%) 88 | . 95 100 100 100 98 95 85 81 74 37 Engine 6 | . 14 14 14 14 9 6 . . . . Core 1 | . . . . . . . 5 5 3 . Treads 13 | . 14 14 14 14 26 22 4 5 4 . Wheel 7 | . 14 14 14 14 9 7 4 . . . Hover 1 | . . . . . . 4 . . . . Flight 3 | . . . . . . . 16 11 9 2 Device 12 | . 14 14 14 14 17 12 12 10 8 5 Storage 7 | . 14 14 14 14 9 7 . . . . Processor 5 | . . . . . . 6 8 11 10 10 Hackware 6 | . . . . . . . 17 23 23 17 Protection 2 | . . . . . 8 9 . . . . Energy Cannon 4 | . . 10 14 14 7 . . . . . Ballistic Gun 1 | . 14 3 . . . 1 . . . . Ballistic Cannon 6 | . 9 14 14 14 4 8 . . . . Slashing Weapon 3 | . . . . . . 2 12 11 10 . Peak Build Rating 55 | 10 8 13 20 20 27 37 53 55 55 43 Average Rating 27 | 7 7 9 15 20 25 30 46 53 47 30 On Entrance 22 | 6 7 8 13 20 20 27 18 50 54 22 Avg Prop Armor Cover (%) 16 | 13 12 11 11 11 19 20 18 19 18 28 Naked Turns . | . . . . . . . . . . . Heaviest Build 44 | 14 31 35 39 39 44 44 13 11 12 1 Greatest Support 62 | 20 16 22 16 16 16 62 20 13 13 5 Greatest Overweight (x) 2 | . 1 2 2 2 2 2 . . . . Average Overweight (x) . | . . 1 2 2 2 1 . . . . Largest Inventory Capacity 15 | 8 15 15 15 15 15 15 15 5 5 5 Average Capacity 11 | 8 14 15 15 15 15 15 5 5 5 5 Most Carried 15 | 8 8 15 15 15 15 15 14 5 5 5 Average Carried 10 | 7 8 11 14 14 13 14 5 4 4 3 Final Capacity 15 | 8 15 15 15 15 15 15 5 5 5 5 Final Carried 15 | 8 8 15 15 15 15 15 5 4 5 5 Class Distribution -------------------- 43% | Mutant 15% | Hacker-Mutant 14% | Skirmisher 13% | Hacker-Ninja 6% | Assassin 4% | Hacker-Scout Dominant Class ---------------- Mutant | -10/Materials Mutant | -10/Mines Mutant | -10/Exiles Mutant | -9/Mines Skirmisher | -8/Materials Skirmisher | -7/Factory Hacker-Ninja | -6/Factory Hacker-Ninja | -5/Factory Hacker-Scout | -5/DSF Hacker-Mutant | -4/Factory Resources | -11 -10 -10 -10 -9 -8 -7 -6 -5 -5 -4 ----------- Run | Yrd Mat Min Exi Min Mat Fac Fac Fac DSF Fac Matter Collected 1179 | 338 69 150 . 30 101 208 283 . . . Remotely . | . . . . . . . . . . . Salvage Created 1415 | 216 65 127 . 113 330 281 283 . . . Parts 115 | 23 7 17 . 7 22 25 14 . . . Haulers Intercepted 1 | . . . . . . 1 . . . . Recyclers Shooed . | . . . . . . . . . . . Parts Field Recycled . | . . . . . . . . . . . Retrieved Matter . | . . . . . . . . . . . Parts Self-Destructed . | . . . . . . . . . . . Prevented . | . . . . . . . . . . . Parts Restored . | . . . . . . . . . . . Kills | -11 -10 -10 -10 -9 -8 -7 -6 -5 -5 -4 ------- Run | Yrd Mat Min Exi Min Mat Fac Fac Fac DSF Fac Combat Hostiles Destroyed 29 | . 4 8 . 2 7 7 1 . . . Melee 3 | . . . . . . 2 1 . . . Cannons 20 | . 4 8 . 2 1 5 . . . . AOE 6 | . . . . . 6 . . . . . Classes Destroyed 14 | 3 2 . . 1 2 4 2 . . . Worker 3 | 1 . . . 1 . . 1 . . . Builder 1 | . . . . . . . 1 . . . Tunneler 6 | 5 . . . . 1 . . . . . Hauler 1 | . . . . . . 1 . . . . Recycler 2 | 1 . . . . . . 1 . . . Carrier 1 | . . . . . 1 . . . . . Operator 3 | . . . . . . 2 1 . . . Watcher 1 | . . . . . . . 1 . . . Swarmer 13 | . 3 6 . . 4 . . . . . Grunt 9 | . 1 2 . 1 2 3 . . . . Duelist 1 | . . . . 1 . . . . . . Sentry 2 | . . . . . 1 1 . . . . Hunter 1 | . . . . . . 1 . . . . Programmer 3 | . . . . . . 2 1 . . . Best Kill Streak 5 | 2 2 3 . 3 5 3 2 . . . Combat Bots Only 4 | . 2 3 . 2 4 3 1 . . . Max Kills in Single Turn 5 | 1 1 1 . 1 5 1 1 . . . Gunslinging . | . . . . . . . . . . . Exploded 4 | . . . . . 4 . . . . . Melee 1 | . . . . . . 1 1 . . . Uniques/NPCs Destroyed . | . . . . . . . . . . . Combat | -11 -10 -10 -10 -9 -8 -7 -6 -5 -5 -4 -------- Run | Yrd Mat Min Exi Min Mat Fac Fac Fac DSF Fac Hostile Shots Fired 284 | . 20 34 . 1 9 110 49 . 21 40 Missed 122 | . 5 11 . . 5 35 31 . 5 30 Hits 162 | . 15 23 . 1 4 75 18 . 16 10 Melee 13 | . . . . . . . . . 13 . Projectile 149 | . 15 23 . 1 4 75 18 . 3 10 AOE 2 | . . . . . . . . . . 2 Critical Strikes 11 | . . . . . . 4 2 . 5 . Damage Taken 2406 | . 134 196 . 12 77 1011 257 . 527 192 Core 673 | . 16 56 . . 13 98 72 . 337 81 Absorbed by Shields . | . . . . . . . . . . . Core Remaining (%) 85 | 100 . . . 71 97 86 91 . 66 . Volleys Fired 92 | 22 7 22 . 3 7 31 . . . . Largest 2 | 2 2 2 . 2 2 2 . . . . Hottest 105 | 40 50 105 . 90 93 80 . . . . Shots Fired 172 | 44 14 44 . 4 9 57 . . . . Gun 66 | 44 7 10 . . . 5 . . . . Cannon 101 | . 7 34 . 4 4 52 . . . . Launcher 5 | . . . . . 5 . . . . . Special . | . . . . . . . . . . . Kinetic 152 | 44 14 32 . 3 2 57 . . . . Thermal 12 | . . 12 . . . . . . . . Explosive 5 | . . . . . 5 . . . . . Electromagnetic 3 | . . . . 1 2 . . . . . Robot Hit Streak 7 | 7 3 2 . 6 1 5 . . . . Robot Miss Streak 4 | 4 3 4 . . 2 3 . . . . Penetration Max . | . . . . . . . . . . . Secondary Targets . | . . . . . . . . . . . Shots Hit Robots 100 | 25 7 16 . 4 2 37 9 . . . Core Hits 58 | 10 5 8 . 7 8 16 4 . . . Critical Kills . | . . . . . . . . . . . Critical Parts Destroyed . | . . . . . . . . . . . Critical Strikes 1 | . . 1 . . . . . . . . Blast 1 | . . 1 . . . . . . . . Melee Attacks 73 | . . . . . . 23 42 6 2 . Impact . | . . . . . . . . . . . Slashing 73 | . . . . . . 23 42 6 2 . Piercing . | . . . . . . . . . . . Sneak Attacks 6 | . . . . . . 1 5 . . . Combat Hostiles . | . . . . . . . . . . . Follow-up Attacks 3 | . . . . . . . 3 . . . Damage Inflicted 3052 | 250 121 286 . 148 805 970 472 . . . Guns 319 | 250 39 15 . . . 15 . . . . Cannons 1184 | . 82 271 . 61 19 751 . . . . Explosions 873 | . . . . 87 786 . . . . . Melee 676 | . . . . . . 204 472 . . . Ramming . | . . . . . . . . . . . Kinetic 1445 | 250 121 236 . 53 19 766 . . . . Thermal 50 | . . 50 . . . . . . . . Explosive 107 | . . . . . 107 . . . . . Electromagnetic 774 | . . . . 95 679 . . . . . Impact . | . . . . . . . . . . . Slashing 676 | . . . . . . 204 472 . . . Piercing . | . . . . . . . . . . . Highest Corruption 6 | . 1 1 1 2 6 . . . . . Average Corruption 1 | . 1 1 1 1 5 . . . . . Corruption Purged . | . . . . . . . . . . . Corruption Blocked . | . . . . . . . . . . . Effects 14 | . 1 5 2 3 3 . . . . . Message Errors 1 | . . 1 . . . . . . . . Matter Fused 2 | . . 1 1 . . . . . . . Heat Flow Errors 5 | . . 1 1 2 1 . . . . . Energy Discharges 2 | . 1 . . . 1 . . . . . Data Loss (minor) 1 | . . 1 . . . . . . . . Data Loss (major) 3 | . . 1 . 1 1 . . . . . Overload Shots . | . . . . . . . . . . . Overflow Damage 147 | . . . . . 17 25 105 . . . Projectiles 25 | . . . . . . 25 . . . . Explosions 17 | . . . . . 17 . . . . . Melee 105 | . . . . . . . 105 . . . Knockbacks 6 | . 1 1 . . . 4 . . . . Impact . | . . . . . . . . . . . Kinetic 6 | . 1 1 . . . 4 . . . . Secondary . | . . . . . . . . . . . Self-Inflicted Damage 18 | . . . . . 18 . . . . . Shots 1 | . . . . . 1 . . . . . Rammed . | . . . . . . . . . . . Targets Rammed . | . . . . . . . . . . . Kicked . | . . . . . . . . . . . Crushed . | . . . . . . . . . . . Highest Temperature 274 | . 2 229 207 274 243 67 . . . . Average Temperature 73 | . 2 74 107 122 78 28 . . . . Received Heat Transfer 372 | . 24 12 . 6 18 288 24 . . . Siege Activations . | . . . . . . . . . . . Martial Activations . | . . . . . . . . . . . Shielding Activations . | . . . . . . . . . . . Robots Disrupted . | . . . . . . . . . . . Combat Hostiles . | . . . . . . . . . . . Robots Corrupted 1 | . . . . . 1 . . . . . Combat Hostiles . | . . . . . . . . . . . Parts Fried 2 | . . . . . 2 . . . . . Impact Corruptions . | . . . . . . . . . . . Robots Melted . | . . . . . . . . . . . Combat Hostiles . | . . . . . . . . . . . Parts Melted . | . . . . . . . . . . . Heat Transferred 74 | . . 74 . . . . . . . . Parts Sabotaged . | . . . . . . . . . . . Parts Stolen . | . . . . . . . . . . . Parts Stripped . | . . . . . . . . . . . Power Chain Reactions . | . . . . . . . . . . . Latent Energy Used 444 | . . . . 44 400 . . . . . LE Corruption 7 | . . . . 1 6 . . . . . Alert | -11 -10 -10 -10 -9 -8 -7 -6 -5 -5 -4 ------- Run | Yrd Mat Min Exi Min Mat Fac Fac Fac DSF Fac Maximum Alert Level 1 | . . . . . 1 . . . . . Low Security (%) 97 | 100 100 100 . 100 59 100 100 100 100 100 Level 1 2 | . . . . . 40 . . . . . Level 2 . | . . . . . . . . . . . Level 3 . | . . . . . . . . . . . Level 4 . | . . . . . . . . . . . Level 5 . | . . . . . . . . . . . High Security . | . . . . . . . . . . . Max Security . | . . . . . . . . . . . Peak Influence 230 | 10 110 95 . 45 230 89 71 39 15 20 Initial 89 | . . 42 . . 1 89 6 27 . . Average 24 | 1 35 31 . 11 134 21 16 10 4 2 Influence Increases 1490 | 35 170 258 . 55 277 303 288 34 15 55 Destroy 0b10 Robot/C 600 | . 80 160 . 40 160 140 20 . . . Destroy 0b10 Robot/NC 85 | 35 . . . 5 5 15 25 . . . Destroy Leader 154 | . 20 30 . 10 30 52 12 . . . Successful Hack 124 | . 10 . . . 5 29 53 22 . 5 Select Force Hacks 20 | . . . . . . . . . . 20 Disable Machine 105 | . 15 45 . . 15 15 15 . . . Destroy Structure 132 | . . 8 . . 62 22 28 12 . . Lose Combat Pursuer 270 | . 45 15 . . . 30 135 . 15 30 Influence Decreases 1478 | 35 60 340 28 50 85 486 245 91 15 43 Entered New Map 246 | . . 68 28 . 4 108 8 30 . . Time Decay 1127 | 35 60 262 . 50 81 301 234 61 . 43 Lost Part 105 | . . 10 . . . 77 3 . 15 . Squads Dispatched 21 | . 3 1 . . 1 4 5 . 1 6 Investigation 7 | . 2 1 . . 1 1 . . . 2 Extermination 4 | . . . . . . 1 2 . . 1 Reinforcement 10 | . 1 . . . . 2 3 . 1 3 Assault . | . . . . . . . . . . . Garrison . | . . . . . . . . . . . Intercept . | . . . . . . . . . . . Searches Triggered . | . . . . . . . . . . . Construction Impeded . | . . . . . . . . . . . Haulers Reinforced . | . . . . . . . . . . . Active Scanning Responses . | . . . . . . . . . . . Cargo Convoy Interrupts . | . . . . . . . . . . . Stealth | -11 -10 -10 -10 -9 -8 -7 -6 -5 -5 -4 --------- Run | Yrd Mat Min Exi Min Mat Fac Fac Fac DSF Fac Distress Signals 6 | . . . . . 3 . 1 . . 2 Communications Jammed 5 | . . . . . . 4 1 . . . Distress Signals 4 | . . . . . . 4 . . . . Times Spotted 84 | . 11 9 . 2 10 14 18 . 5 15 Peak Tracking Total 8 | . 3 3 . 2 5 4 5 . 4 8 Tactical Retreats 12 | . 2 1 . . . 1 5 . 1 2 Traps | -11 -10 -10 -10 -9 -8 -7 -6 -5 -5 -4 ------- Run | Yrd Mat Min Exi Min Mat Fac Fac Fac DSF Fac Traps Triggered 2 | . 1 . . . . . . . . 1 Indirectly . | . . . . . . . . . . . Trap Hack Attempts . | . . . . . . . . . . . Triggered . | . . . . . . . . . . . Disarmed . | . . . . . . . . . . . Reprogrammed . | . . . . . . . . . . . Reused . | . . . . . . . . . . . Traps Extracted . | . . . . . . . . . . . Installed . | . . . . . . . . . . . Triggered . | . . . . . . . . . . . Machines | -11 -10 -10 -10 -9 -8 -7 -6 -5 -5 -4 ---------- Run | Yrd Mat Min Exi Min Mat Fac Fac Fac DSF Fac Machines Disabled 7 | . 1 3 . . 1 1 1 . . . Max in Single Turn 1 | . 1 1 . . 1 1 1 . . . Garrison Access 2 | . . . . . . 1 . 1 . . Machines Repaired . | . . . . . . . . . . . Machines Dismantled . | . . . . . . . . . . . Machines Sabotaged . | . . . . . . . . . . . Overloaded Fab Kills . | . . . . . . . . . . . Hacking | -11 -10 -10 -10 -9 -8 -7 -6 -5 -5 -4 --------- Run | Yrd Mat Min Exi Min Mat Fac Fac Fac DSF Fac Machines Accessed 30 | . 1 2 2 . 2 6 8 5 . 4 Terminals 18 | . 1 . . . 2 3 6 4 . 2 Fabricators 1 | . . . . . . . . . . 1 Repair Stations 1 | . . . . . . 1 . . . . Recycling Units 1 | . . . . . . . 1 . . . Scanalyzers 3 | . . . . . . 1 1 . . 1 Garrison Access 2 | . . . . . . 1 . 1 . . Total Hacks 77 | . 3 2 5 . 6 12 24 14 . 11 Successful 42 | . 2 2 5 . 1 5 10 7 . 10 Failed 35 | . 1 . . . 5 7 14 7 . 1 Catastrophic 4 | . . . . . 1 2 . . . 1 Database Lockouts . | . . . . . . . . . . . Manual 37 | . 2 . 1 . 4 3 11 8 . 8 Terminals 53 | . 3 . . . 6 6 18 13 . 7 Fabricators 3 | . . . . . . . . . . 3 Repair Stations 2 | . . . . . . 2 . . . . Recycling Units 2 | . . . . . . . 2 . . . Scanalyzers 7 | . . . . . . 2 4 . . 1 Garrison Access 3 | . . . . . . 2 . 1 . . Terminal Hacks 20 | . 1 2 5 . . 1 4 3 . 4 Record 4 | . . . 4 . . . . . . . Part Schematic 1 | . . . . . . . . . . 1 Prototype ID Bank 2 | . 1 . . . . . 1 . . . Open Door 2 | . . 2 . . . . . . . . Open DSF 2 | . . . . . . . 1 1 . . Level Access Points 2 | . . . . . . . 1 . . 1 Machine Index 1 | . . . . . . . . . . 1 Terminal Index 4 | . . . . . . 1 1 1 . 1 Registered Components 1 | . . . . . . . . 1 . . Proto ID Catalog 1 | . . . 1 . . . . . . . Fabricator Hacks 2 | . . . . . . . . . . 2 Load Schematic 1 | . . . . . . . . . . 1 Build 1 | . . . . . . . . . . 1 Repair Station Hacks 1 | . . . . . . 1 . . . . Scan Component 1 | . . . . . . 1 . . . . Recycling Unit Hacks 1 | . . . . . . . 1 . . . Retrieve Matter 1 | . . . . . . . 1 . . . Scanalyzer 4 | . . . . . . 1 2 . . 1 Retrieve Study 4 | . . . . . . 1 2 . . 1 Garrison Access Hacks 2 | . . . . . . 1 . 1 . . Seal Access 2 | . . . . . . 1 . 1 . . Unauthorized Hacks 12 | . 1 . . . 1 1 3 3 . 3 Terminals 11 | . 1 . . . 1 1 3 3 . 2 Botnet 11 | . 1 . . . 1 1 3 3 . 2 Fabricators 1 | . . . . . . . . . . 1 Download 1 | . . . . . . . . . . 1 Repair Stations . | . . . . . . . . . . . Recycling Units . | . . . . . . . . . . . Scanalyzers . | . . . . . . . . . . . Garrison Access . | . . . . . . . . . . . Data Cores Recovered . | . . . . . . . . . . . Used . | . . . . . . . . . . . Hacking Detections 21 | . 1 . . . 2 5 7 3 . 3 Full Trace Events 3 | . 1 . . . 1 1 . . . . Feedback Events 1 | . 1 . . . . . . . . . Corruption 1 | . 1 . . . . . . . . . Feedback Blocked . | . . . . . . . . . . . Robot Schematics Acquired . | . . . . . . . . . . . Robots Built . | . . . . . . . . . . . Authchips . | . . . . . . . . . . . Time . | . . . . . . . . . . . Total Robot Build Rating . | . . . . . . . . . . . Part Schematics Acquired 1 | . . . . . . . . . . 1 Parts Built 1 | . . . . . . . . . . 1 Authchips 1 | . . . . . . . . . . 1 Time 33 | . . . . . . . . . . 33 Total Part Build Rating 2 | . . . . . . . . . . 2 Part Studies Acquired 4 | . . . . . . 1 2 . . 1 Parts Repaired . | . . . . . . . . . . . Time . | . . . . . . . . . . . Parts Recycled . | . . . . . . . . . . . Recycled Matter . | . . . . . . . . . . . Retrieved Matter . | . . . . . . . . . . . Retrieved Components . | . . . . . . . . . . . Parts Scanalyzed . | . . . . . . . . . . . Part Schematics Acquired . | . . . . . . . . . . . Parts Damaged . | . . . . . . . . . . . Bothacking | -11 -10 -10 -10 -9 -8 -7 -6 -5 -5 -4 ------------ Run | Yrd Mat Min Exi Min Mat Fac Fac Fac DSF Fac Used RIF Installer . | . . . . . . . . . . . Robots Hacked . | . . . . . . . . . . . Non-combat . | . . . . . . . . . . . Combat . | . . . . . . . . . . . Robot Hacks Applied . | . . . . . . . . . . . Relay Couplers Released . | . . . . . . . . . . . Fabnet Peak Effective % . | . . . . . . . . . . . Robots Rewired . | . . . . . . . . . . . Allies Hacked . | . . . . . . . . . . . Hacks Repelled . | . . . . . . . . . . . Allies | -11 -10 -10 -10 -9 -8 -7 -6 -5 -5 -4 -------- Run | Yrd Mat Min Exi Min Mat Fac Fac Fac DSF Fac Total Allies . | . . . . . . . . . . . Largest Group . | . . . . . . . . . . . Highest-Rated Group . | . . . . . . . . . . . Highest-Rated Ally . | . . . . . . . . . . . Total Orders . | . . . . . . . . . . . Ally Attacks . | . . . . . . . . . . . Total Damage . | . . . . . . . . . . . Kills . | . . . . . . . . . . . Allies Corrupted . | . . . . . . . . . . . Allies Melted . | . . . . . . . . . . . Intel | -11 -10 -10 -10 -9 -8 -7 -6 -5 -5 -4 ------- Run | Yrd Mat Min Exi Min Mat Fac Fac Fac DSF Fac Active Infowar (turns) 4458 | 100 208 720 313 225 215 1144 756 251 75 451 Optics 640 | . . . . . . . 320 251 69 . Terrain 1903 | 79 . . . . 212 808 500 244 60 . Seismic 1757 | 21 208 720 313 225 215 55 . . . . Machine Analysis 451 | . . . . . . . . . . 451 Jamming 1669 | . . . . . . 914 486 243 23 3 Robot Analysis Total . | . . . . . . . . . . . Derelict Logs Recovered 2 | . . 1 . 1 . . . . . . Drone Launches . | . . . . . . . . . . . Drone Recoveries . | . . . . . . . . . . . Exploration | -11 -10 -10 -10 -9 -8 -7 -6 -5 -5 -4 ------------- Run | Yrd Mat Min Exi Min Mat Fac Fac Fac DSF Fac Turns Passed 4579 | 187 208 720 313 225 215 1164 763 251 82 451 Spaces Moved 4046 | 112 149 497 239 162 145 659 995 236 102 750 Core 351 | . . . . . . . . . 25 326 Treads 6 | . . 2 . . . 4 . . . . Legs 4 | 4 . . . . . . . . . . Wheels 1953 | 108 149 495 239 162 145 655 . . . . Hover . | . . . . . . . . . . . Flight 1732 | . . . . . . . 995 236 77 424 Fastest Speed 40 | 100 100 115 130 130 130 115 47 57 40 40 Average Speed 88 | 100 114 126 130 130 130 129 55 57 54 45 Slowest Speed 225 | 120 115 225 130 130 130 155 67 57 60 50 Overloaded Moves . | . . . . . . . . . . . Propulsion Burnouts . | . . . . . . . . . . . Robots Hopped 14 | . . . . . . . 8 1 . 5 Potential Cave-ins . | . . . . . . . . . . . Cave-ins Triggered . | . . . . . . . . . . . Exploration Rate (%) 34 | 6 24 75 59 35 18 15 39 5 90 12 Regions Visited 10 Branch Regions 3 Pre-discovered Areas 2 | . . 1 1 . . . . . . . Known Exits Taken 3 | . . . . . 1 . 1 1 . . Unknown Exits Taken 6 | 1 1 1 1 1 . 1 . . . . Scrap Searched 2 | . . 2 . . . . . . . . Spaces Dug 48 | . . . . . . 15 27 6 . . Terrain Destroyed 136 | . . 9 . . 74 20 27 6 . . Melee 47 | . . . . . . 14 27 6 . . Projectile 15 | . . 9 . . . 6 . . . . AOE 74 | . . . . . 74 . . . . . Terrain Rammed . | . . . . . . . . . . . Walls Destroyed . | . . . . . . . . . . . Machines Disabled . | . . . . . . . . . . . Actions | -11 -10 -10 -10 -9 -8 -7 -6 -5 -5 -4 --------- Run | Yrd Mat Min Exi Min Mat Fac Fac Fac DSF Fac Total 4773 | 151 173 541 241 173 161 877 1140 341 124 851 Wait 451 | . 15 13 . 7 . 127 81 99 15 94 Move 4011 | 111 148 496 238 161 144 658 981 233 101 740 Hop 11 | . . . . . . . 5 1 . 5 Pick Up 36 | 5 . 7 1 1 4 11 2 . 2 3 Fast Attach 18 | 2 1 . . . . 3 8 . 1 3 Attach 21 | 2 . 1 . . 4 2 8 1 . 3 Detach 6 | 3 . . . . . . 2 . . 1 Swap 24 | 1 1 2 1 . 2 10 4 1 1 1 Drop 33 | 5 1 . 1 1 . 12 10 . 2 1 Fire 92 | 22 7 22 . 3 7 31 . . . . Melee 70 | . . . . . . 23 39 6 2 . Ram . | . . . . . . . . . . . Kick . | . . . . . . . . . . . Crush . | . . . . . . . . . . . Escape Stasis . | . . . . . . . . . . . Rewire . | . . . . . . . . . . . Trap . | . . . . . . . . . . . Miscellaneous . | . . . . . . . . . . . Route ------- -11/Scrapyard -10/Materials -10/Mines (discovered 3 exits: [*Mat] / *Exi / [*Sub]) -10/Exiles -9/Mines -8/Materials -7/Factory -6/Factory (discovered 4 exits: *Fac x4) -5/Factory -5/DSF -4/Factory (discovered 4 exits: Res x4) History --------- Turn | Location | Event 1 | -11/Scrapyard | Discovered new exit (range 2) 188 | -11/Scrapyard | Entered Materials 264 | -10/Materials | Discovered new exit (range 16) 307 | -10/Materials | Build established: Mutant 396 | -10/Materials | Entered Mines 418 | -10/Mines | Met a Derelict who couldn't figure out how to use a Trap Extractor 436 | -10/Mines | Learned location of Storage (-8) 608 | -10/Mines | Discovered new exit (range 5) 745 | -10/Mines | Learned Materials trap positions 771 | -10/Mines | Received a Rocket Launcher from a helpful Derelict 861 | -10/Mines | Discovered new exit (range 5) 1037 | -10/Mines | Met a Derelict shopkeep closing up shop 1110 | -10/Mines | Deemed a non-threat by the Exiles lab entrance 1111 | -10/Mines | Discovered new exit (range 5) 1116 | -10/Mines | Entered Exiles 1146 | -10/Exiles | Met 8R-AWN 1170 | -10/Exiles | Met EX-HEX 1205 | -10/Exiles | Met EX-BIN 1222 | -10/Exiles | Aligned with FarCom system 1223 | -10/Exiles | Given EX-Vault access code 1256 | -10/Exiles | Opened EX-Vault 1303 | -10/Exiles | Found Latent Energy Streamer 1334 | -10/Exiles | Warned to stay clear of 0b10 Research branches 1372 | -10/Exiles | Met EX-DEC 1377 | -10/Exiles | Learned location of Zion (-7) 1416 | -10/Exiles | Discovered new exit (range 12) 1429 | -10/Exiles | Left Exiles lab with Latent Energy Streamer 1429 | -10/Exiles | Entered Mines 1550 | -9/Mines | Learned location of 1 exit from Materials 1645 | -9/Mines | Discovered new exit (range 9) 1654 | -9/Mines | Entered Materials 1654 | -8/Materials | Evolved 4 slots: Propulsion x2, Utility x2 1655 | -8/Materials | Identified exit to Factory 1656 | -8/Materials | Loaded intel: 17 trap records 1869 | -8/Materials | Entered Factory 1869 | -7/Factory | Evolved 2 slots: Propulsion x1, Utility x1 1945 | -7/Factory | Build established: Skirmisher 2197 | -7/Factory | Discovered new exit (range 16) 2654 | -7/Factory | Build established: Mutant 3033 | -7/Factory | Entered another Factory area 3033 | -6/Factory | Evolved 2 slots: Utility x2 3050 | -6/Factory | Identified exit to DSF 3062 | -6/Factory | Lost 7 parts (1p3n3u) 3722 | -6/Factory | Identified exit to Factory 3796 | -6/Factory | Entered another Factory area 3796 | -5/Factory | Evolved 2 slots: Power x1, Utility x1 4039 | -5/Factory | Identified exit to DSF 4047 | -5/Factory | Entered DSF 4080 | -5/DSF | Additional patrols routed to DSF 4121 | -5/DSF | Discovered new exit (range 14) 4129 | -5/DSF | Entered Factory 4129 | -4/Factory | Evolved 2 slots: Propulsion x1, Utility x1 4155 | -4/Factory | Lost 6 parts (1p2n2u1w) 4386 | -4/Factory | Fabricated Imp. Flight Unit (x1) 4410 | -4/Factory | Spotted B-86 Titan 4416 | -4/Factory | Build established: Hacker-Mutant 4455 | -4/Factory | Identified exit to Research 4580 | -4/Factory | Self-destructed Last Messages --------------- dispatching Specialist reinforcements to area. 04556_ W-44 Eye sends out distress signal. 04557_ K-01 Serf collects debris. 04559_ C-30 ARC bursts open, deploying its payload. 04559_ S-27 Virus unfolds itself. 04562_ Connecting with Fabricator... [Achievement: Brute Force] >>Force(Download) MEMORY_EMPTY 04562_ ALERT: Suspicious activity at Fabricator F002. Dispatching Investigation squad. 04575_ S-27 Virus destroyed. 04580_ Neutrino Reactor explodes. 04580_ Slug penetrates Garrison Access. 04580_ K-01 Serf destroyed. 04580_ Chain reaction triggered in Corrupted Lgt. Ion Engine. 04580_ Neutrino Reactor explodes. 04580_ Slug penetrates W-44 Eye. Map ----- +----------------------------------------------------+ | ?????????????????????????????????????????????????? | | ??""""???????????????????????????????????????????? | | ?""S""???????????????????????????????????????????? | | ?""?""???????????????????????????????????????????? | | ?????????????????????????????????????????????????? | | ??"""????????????????????????????????????????????? | | ??"""????????????????????????????????????????????? | | ??"""????????????????????????????????????????????? | | ?????????????????????????????????????????????????? | | ????????????????????? ???????????????????????????? | | ???????????????????? """?"""?"""?"""?????????????? | | ???????????????????? """?"""?"""?"""?????????????? | | ??????????????????? """?"""?"""?"""?????????????? | | ??????????????????? ???????p????????????????? | | ??????????????????? """ """?"""?"""?????????????? | | ??????????????????? """ """?"""?"""?????????????? | | ??????????????????? """ """ """?"""?????????????? | | ???###########??### ?????????????????? | | ???# ! ?# """ """ """ """?????????????? | | ???# ?# """ """ """ """?? ??????????? | | ???# # """ """ """ """ ??????????? | | ???# #% ?????????? | | ???# w "" ?????????? | | ???# # "G ????????? | | ???# # "" ????????? | | ???# ?# ! @ ! ????????? | | ???# ! ?# ????????? | | ???# ??# # BB## ##???????????? | | ???# ??# ##BB#?""""#????????????? | | ???# ! ???# #?###??????????????????? | | ????#########???# #??????????????????????? | | ????????????????# #??????????????H???????? | | ????????????????# #??????????????????????? | | ????????????????# #??????????????????????? | | ????????????????# #??????????????????????? | | ????????????????# #??????????????????????? | | ????????????????# #??????????????????????? | | ????????????????# #??????????????????????? | | ????????????????# sss##??????????????????????? | | ????????????????# *#???????????????????????? | | ????????????????# ############????????????? | | ????????????????# x x ???????? | | ????????????????# ############+#######? | | ????????????????####### ^ #????# #? | | ??????????????????????# ^ #????# #? | | ####################### ###### """ #? | | / """ #? | | ########################## ###### """ #? | | ######## #????##+#####?# """ #? | | # # #????# #?# ""F """"" #? | +----------------------------------------------------+ Best States ------------- Heat Dissipation 51 Energy Generation 15 Energy Capacity 250 Matter Stores 300 Matter Capacity 300 Sight Range 22 Terrain Scan Range 20 Terrain Scan Density 210 Jamming Range 14 Armor Coverage 300 Evasion (%) 69 Recoil Reduction 3 Offensive Hacking 32 Defensive Hacking 10 Authchip Count 1 Item Schematics ----------------- Imp. Flight Unit | -4/Factory | Hacked Robot Schematics ------------------ None Fabricated ------------ Imp. Flight Unit | x1 | -4/Factory | Authchip Repaired ---------- Nothing Studied --------- Lgt. Nuclear Core | -7/Factory | Hacked Xenon Bombardment Thruster | -6/Factory | Hacked Katana | -6/Factory | Hacked Mic. Fission Core | -4/Factory | Hacked Alien Tech Used ----------------- None Achievements -------------- Brute Force Official Business Preemptive Strike Challenges ------------ None Game ------ Seed ExpertTractorSpoofer Manual? 0 Play Time 00:57:01 Cumulative 35.7 hours Start 2026.07.25 @ 13:47:25 End 2026.07.25 @ 14:45:12 Sessions 1 Manual Loads 0 Difficulty Rogue Special Mode None Game No. 41 Rogue 41 Adventurer 0 Explorer 0 Win Type - Total 1 Types 1/0/0/0/0/0/0/0/0/0 Lore% 23 Gallery% 25 Achievement% 24 Wizard Run 0 Options --------- Layout 2 ASCII 0 Keyboard 1 Movement Numpad Keybinds 1 Fullscreen 2 Font 24/Terminus Map View 50x44 Zoom Use 0% Tactical HUD 1 Map Filters NONE Filters LOW_CONTRAST(18,8,8)|SATURATION(90)|BRIGHTNESS(90) Steam 1 RUN: d996dbc7-12dc-459a-9779-64eb835e3b5b